Cogmind - Beta 15 @@@ ROGUE MODE // 2025.06.08 @ 12:22:02 Player: BlobtheGreat Result: Self-destructed Performance ------------- Evolutions (4) 2000 Regions Visited (4) 800 Robots Destroyed (14) 70 Value Destroyed (561) 561 Prototype IDs (8) 160 Alien Tech Used (0) 0 Bonus (800) 800 TOTAL SCORE: 4391 Bonus ------- Registered with UFD 300 Met Optimus in HQ 500 Cogmind --------- Core Integrity 483/850 Matter 288/300 Energy 93/290 System Corruption 13% Temperature Cool (70) Movement Walking (260) Ox2 Location -6/Factory Parts ------- > --- POWER (2) -------- Improved Deuterium Engine > --- PROPULSION (4) --- Flexi-carbon Leg > --- UTILITY (7) ------ Improved Cooling System Large Storage Unit Improved Targeting Computer Improved Targeting Computer Power Shielding A0-MCA's Component Scanner > --- WEAPON (2) ------- Heavy Plasma Cannon Flak Gun > --- INVENTORY (15) --- Wheel Compact Wheel Small Storage Unit Gatling Laser Flak Gun Flak Gun Flak Gun Flak Gun Datajack Remote Datajack DRS Beacon (Ready) Peak State ------------ > --- POWER ------------ Light Deuterium Engine Improved Deuterium Engine > --- PROPULSION ------- Aluminum Leg Flexi-carbon Leg > --- UTILITY ---------- Improved Cooling System Large Storage Unit Improved Targeting Computer Improved Targeting Computer Power Shielding Utility Shielding A0-MCA's Component Scanner > --- WEAPON ----------- Heavy Plasma Cannon Flak Gun > --- INVENTORY -------- Improved Deuterium Engine Wheel Compact Wheel Small Storage Unit Gatling Laser Flak Gun Flak Gun Flak Gun Flak Gun Datajack Remote Datajack DRS Beacon [Rating: 45] Favorites ----------- Power Light Ion Engine Engine Light Ion Engine Propulsion Aluminum Leg Leg Aluminum Leg Wheel Compact Wheel Utility Large Storage Unit Device Seismic Detector Storage Large Storage Unit Processor Improved Targeting Computer Protection Reactive Plating Weapon Small Laser Energy Gun Small Laser Energy Cannon Heavy Plasma Cannon Ballistic Gun Flak Gun Special Weapon Remote Datajack Build | -11 -10 -10 -8 -6 ------- Run | Yrd Mat Sub Scr Fac Slots Evolved 8 | . . . . 8 Power 1 | . . . . 1 Propulsion 2 | . . . . 2 Utility 5 | . . . . 5 Weapon . | . . . . . Parts Attached 31 | 7 2 . 1 21 Power 6 | 1 . . . 5 Engine 6 | 1 . . . 5 Core . | . . . . . Reactor . | . . . . . Propulsion 6 | 2 1 . 1 2 Treads . | . . . . . Leg 5 | 2 . . 1 2 Wheel 1 | . 1 . . . Hover . | . . . . . Flight . | . . . . . Utility 10 | 2 1 . . 7 Device 2 | 1 . . . 1 Storage 2 | 1 1 . . . Processor 3 | . . . . 3 Hackware . | . . . . . Protection 3 | . . . . 3 Artifact . | . . . . . Weapon 9 | 2 . . . 7 Energy Gun 4 | 2 . . . 2 Energy Cannon 1 | . . . . 1 Ballistic Gun 3 | . . . . 3 Ballistic Cannon . | . . . . . Launcher . | . . . . . Special Weapon 1 | . . . . 1 Impact Weapon . | . . . . . Slashing Weapon . | . . . . . Piercing Weapon . | . . . . . Special Melee Weapon . | . . . . . Unidentified Prototypes . | . . . . . Parts Lost 12 | . . . . 12 Power 4 | . . . . 4 Propulsion 4 | . . . . 4 Utility 3 | . . . . 3 Weapon 1 | . . . . 1 Highest Loss Streak 4 | . . . . 4 To Critical Strikes . | . . . . . Average Backups 12 | 4 9 12 14 12 Power 1 | . 1 2 2 . Propulsion 4 | 2 5 6 5 2 Utility 3 | . 1 2 4 2 Weapon 2 | . 1 1 1 5 Tool/Special . | . . . . . Unused Backups 9 | . . . 2 7 Power . | . . . . . Propulsion 3 | . . . 2 1 Utility . | . . . . . Weapon 5 | . . . . 5 Tool/Special 1 | . . . . 1 Average Slot Usage (%) 94 | . 100 100 100 84 Engine 13 | . 14 14 14 12 Leg 20 | . 15 14 21 23 Wheel 5 | . 12 14 6 . Device 11 | . 14 14 14 7 Storage 11 | . 14 14 14 6 Processor 5 | . . . . 14 Protection 1 | . . . . 5 Energy Gun 18 | . 28 28 28 3 Ballistic Gun 2 | . . . . 7 Peak Build Rating 45 | 7 8 8 10 45 Average Rating 17 | 5 7 8 8 34 On Entrance 6 | . 7 8 8 10 Naked Turns . | . . . . . Heaviest Build 53 | 11 26 26 26 53 Greatest Support 40 | 20 20 16 20 40 Greatest Overweight (x) 4 | . 1 1 2 4 Average Overweight (x) . | . . 1 1 . Largest Inventory Capacity 15 | 8 15 15 15 15 Average Capacity 14 | 7 14 15 15 15 Most Carried 15 | 6 12 12 15 15 Average Carried 13 | 4 9 12 14 13 Final Capacity 15 | 8 15 15 15 15 Final Carried 15 | 6 12 12 15 11 Class Distribution -------------------- 100% | Mutant Dominant Class ---------------- Mutant | -10/Materials Mutant | -10/Subcaves Mutant | -8/Scraptown Mutant | -6/Factory Resources | -11 -10 -10 -8 -6 ----------- Run | Yrd Mat Sub Scr Fac Matter Collected 732 | 250 40 . 10 432 Remotely . | . . . . . Salvage Created 562 | 26 50 . . 486 Parts 30 | 7 3 . . 20 Haulers Intercepted . | . . . . . Recyclers Shooed 2 | . . . . 2 Parts Field Recycled . | . . . . . Retrieved Matter . | . . . . . Parts Self-Destructed 6 | . . 6 . . Prevented . | . . . . . Kills | -11 -10 -10 -8 -6 ------- Run | Yrd Mat Sub Scr Fac Combat Hostiles Destroyed 9 | . 1 . . 8 Guns 6 | . . . . 6 Cannons 2 | . . . . 2 Classes Destroyed 7 | 1 1 . . 5 Builder 2 | . . . . 2 Tunneler 2 | 2 . . . . Recycler 1 | . . . . 1 Grunt 3 | . 1 . . 2 Hunter 2 | . . . . 2 Programmer 3 | . . . . 3 Heavy 1 | . . . . 1 Best Kill Streak 3 | 1 1 . . 3 Combat Bots Only 3 | . 1 . . 3 Max Kills in Single Turn 1 | 1 1 . . 1 Gunslinging . | . . . . . Exploded . | . . . . . Melee . | . . . . . Uniques/NPCs Destroyed . | . . . . . Combat | -11 -10 -10 -8 -6 -------- Run | Yrd Mat Sub Scr Fac Hostile Shots Fired 132 | . . . . 132 Missed 26 | . . . . 26 Hits 106 | . . . . 106 Projectile 106 | . . . . 106 Critical Strikes 4 | . . . . 4 Damage Taken 2019 | . 23 . . 1996 Core 367 | . . . . 367 Absorbed by Shields . | . . . . . Redirected to Shielding 79 | . . . . 79 Ignored by Resistances 82 | . . . . 82 Core Remaining (%) 100 | 100 . . 100 . Volleys Fired 65 | 7 1 . . 57 Largest 2 | 2 2 . . 2 Hottest 118 | 80 80 . . 118 Shots Fired 127 | 14 2 . . 111 Gun 99 | 14 2 . . 83 Cannon 28 | . . . . 28 Launcher . | . . . . . Special . | . . . . . Kinetic 47 | . . . . 47 Thermal 61 | 14 2 . . 45 Explosive . | . . . . . Electromagnetic 19 | . . . . 19 Robot Hit Streak 20 | 4 3 . . 20 Robot Miss Streak 7 | 3 . . . 7 Penetration Max . | . . . . . Secondary Targets . | . . . . . Shots Hit Robots 107 | 8 2 . . 97 Core Hits 62 | 2 . . . 60 Critical Kills . | . . . . . Critical Parts Destroyed . | . . . . . Critical Strikes . | . . . . . Melee Attacks . | . . . . . Impact . | . . . . . Slashing . | . . . . . Piercing . | . . . . . Sneak Attacks . | . . . . . Combat Hostiles . | . . . . . Follow-up Attacks . | . . . . . Damage Inflicted 1977 | 85 22 . . 1870 Guns 1194 | 85 22 . . 1087 Cannons 783 | . . . . 783 Explosions . | . . . . . Melee . | . . . . . Ramming . | . . . . . Kinetic 833 | . . . . 833 Thermal 1110 | 85 22 . . 1003 Explosive . | . . . . . Electromagnetic 34 | . . . . 34 Impact . | . . . . . Slashing . | . . . . . Piercing . | . . . . . Highest Corruption 13 | . . . . 13 Average Corruption 5 | . . . . 5 Corruption Purged . | . . . . . Corruption Blocked . | . . . . . Effects 22 | . . . . 22 Message Errors 3 | . . . . 3 Matter Fused 4 | . . . . 4 Heat Flow Errors 3 | . . . . 3 Energy Discharges 2 | . . . . 2 Parts Rejected 1 | . . . . 1 Data Loss (minor) 4 | . . . . 4 Data Loss (major) 3 | . . . . 3 Alerts 1 | . . . . 1 Weapon Failures 1 | . . . . 1 Overload Shots . | . . . . . Overflow Damage 14 | . . . . 14 Projectiles 14 | . . . . 14 Explosions . | . . . . . Melee . | . . . . . Knockbacks . | . . . . . Impact . | . . . . . Kinetic . | . . . . . Secondary . | . . . . . Self-Inflicted Damage . | . . . . . Shots . | . . . . . Rammed . | . . . . . Targets Rammed . | . . . . . Kicked . | . . . . . Crushed . | . . . . . Highest Temperature 204 | 72 18 . . 204 Average Temperature 45 | 30 12 . . 52 Received Heat Transfer 306 | . . . . 306 Siege Activations . | . . . . . Martial Activations . | . . . . . Shielding Activations . | . . . . . Robots Disrupted . | . . . . . Combat Hostiles . | . . . . . Robots Corrupted . | . . . . . Combat Hostiles . | . . . . . Parts Fried . | . . . . . Impact Corruptions . | . . . . . Robots Melted 1 | . 1 . . . Combat Hostiles 1 | . 1 . . . Parts Melted 4 | . 1 . . 3 Heat Transferred 1850 | 200 50 . . 1600 Parts Sabotaged . | . . . . . Parts Stolen . | . . . . . Parts Stripped . | . . . . . Power Chain Reactions . | . . . . . Alert | -11 -10 -10 -8 -6 ------- Run | Yrd Mat Sub Scr Fac Maximum Alert Level . | . . . . . Low Security (%) 100 | 100 100 . . 100 Level 1 . | . . . . . Level 2 . | . . . . . Level 3 . | . . . . . Level 4 . | . . . . . Level 5 . | . . . . . High Security . | . . . . . Max Security . | . . . . . Peak Influence 103 | 5 20 . . 103 Initial . | . . . . . Average 18 | 1 2 . . 24 Influence Increases 353 | 10 20 . . 323 Destroy 0b10 Robot/C 180 | . 20 . . 160 Destroy 0b10 Robot/NC 25 | 10 . . . 15 Destroy Leader 50 | . . . . 50 Successful Hack 5 | . . . . 5 Disable Machine 30 | . . . . 30 Destroy Structure 3 | . . . . 3 Partial Spotted 15 | . . . . 15 Lose Combat Pursuer 45 | . . . . 45 Influence Decreases 352 | 10 20 . . 322 Time Decay 265 | 10 20 . . 235 Lost Part 87 | . . . . 87 Squads Dispatched 6 | . . . . 6 Investigation 1 | . . . . 1 Extermination 1 | . . . . 1 Reinforcement 4 | . . . . 4 Assault . | . . . . . Garrison . | . . . . . Intercept . | . . . . . Searches Triggered . | . . . . . Construction Impeded 1 | . . . . 1 Haulers Reinforced . | . . . . . Active Scanning Responses . | . . . . . Cargo Convoy Interrupts . | . . . . . Stealth | -11 -10 -10 -8 -6 --------- Run | Yrd Mat Sub Scr Fac Distress Signals 2 | . 2 . . . Communications Jammed . | . . . . . Distress Signals . | . . . . . Times Spotted 24 | . 4 . . 20 Peak Tracking Total 7 | . 2 . . 7 Tactical Retreats 2 | . . . . 2 Traps | -11 -10 -10 -8 -6 ------- Run | Yrd Mat Sub Scr Fac Traps Triggered 3 | . . . . 3 Indirectly . | . . . . . Trap Hack Attempts . | . . . . . Triggered . | . . . . . Disarmed . | . . . . . Reprogrammed . | . . . . . Reused . | . . . . . Traps Extracted . | . . . . . Installed . | . . . . . Triggered . | . . . . . Machines | -11 -10 -10 -8 -6 ---------- Run | Yrd Mat Sub Scr Fac Machines Disabled 2 | . . . . 2 Max in Single Turn 1 | . . . . 1 Machines Repaired . | . . . . . Machines Dismantled . | . . . . . Machines Sabotaged . | . . . . . Overloaded Fab Kills . | . . . . . Hacking | -11 -10 -10 -8 -6 --------- Run | Yrd Mat Sub Scr Fac Machines Accessed 5 | . . . 2 3 Terminals 2 | . . . . 2 Fabricators 1 | . . . . 1 Repair Stations . | . . . . . Recycling Units . | . . . . . Scanalyzers . | . . . . . Garrison Access . | . . . . . Total Hacks 5 | . . . 2 3 Successful 4 | . . . 2 2 Failed 1 | . . . . 1 Catastrophic . | . . . . . Database Lockouts . | . . . . . Manual . | . . . . . Terminals 2 | . . . . 2 Fabricators 1 | . . . . 1 Repair Stations . | . . . . . Recycling Units . | . . . . . Scanalyzers . | . . . . . Garrison Access . | . . . . . Terminal Hacks 4 | . . . 2 2 Record 1 | . . . 1 . Open DSF 1 | . . . . 1 Hauler Manifests 1 | . . . . 1 Proto ID Catalog 1 | . . . 1 . Fabricator Hacks . | . . . . . Repair Station Hacks . | . . . . . Recycling Unit Hacks . | . . . . . Scanalyzer . | . . . . . Garrison Access Hacks . | . . . . . Unauthorized Hacks . | . . . . . Terminals . | . . . . . Fabricators . | . . . . . Repair Stations . | . . . . . Recycling Units . | . . . . . Scanalyzers . | . . . . . Garrison Access . | . . . . . Data Cores Recovered 1 | . 1 . . . Used . | . . . . . Hacking Detections 2 | . . . . 2 Full Trace Events . | . . . . . Feedback Events . | . . . . . Feedback Blocked . | . . . . . Robot Schematics Acquired . | . . . . . Robots Built . | . . . . . Authchips . | . . . . . Time . | . . . . . Total Robot Build Rating . | . . . . . Part Schematics Acquired . | . . . . . Parts Built . | . . . . . Authchips . | . . . . . Time . | . . . . . Total Part Build Rating . | . . . . . Parts Repaired . | . . . . . Time . | . . . . . Parts Recycled . | . . . . . Recycled Matter . | . . . . . Retrieved Matter . | . . . . . Retrieved Components . | . . . . . Parts Scanalyzed . | . . . . . Part Schematics Acquired . | . . . . . Parts Damaged . | . . . . . Bothacking | -11 -10 -10 -8 -6 ------------ Run | Yrd Mat Sub Scr Fac Used RIF Installer . | . . . . . Robots Hacked . | . . . . . Non-combat . | . . . . . Combat . | . . . . . Robot Hacks Applied . | . . . . . Relay Couplers Released . | . . . . . Fabnet Peak Effective % . | . . . . . Robots Rewired . | . . . . . Allies Hacked . | . . . . . Hacks Repelled . | . . . . . Allies | -11 -10 -10 -8 -6 -------- Run | Yrd Mat Sub Scr Fac Total Allies . | . . . . . Largest Group . | . . . . . Highest-Rated Group . | . . . . . Highest-Rated Ally . | . . . . . Total Orders . | . . . . . Ally Attacks . | . . . . . Total Damage . | . . . . . Kills . | . . . . . Allies Corrupted . | . . . . . Allies Melted . | . . . . . Intel | -11 -10 -10 -8 -6 ------- Run | Yrd Mat Sub Scr Fac Active Infowar (turns) 2041 | 17 207 246 1052 519 Seismic 2041 | 17 207 246 1052 519 Robot Analysis Total . | . . . . . Derelict Logs Recovered 1 | . . 1 . . Drone Launches . | . . . . . Drone Recoveries . | . . . . . Exploration | -11 -10 -10 -8 -6 ------------- Run | Yrd Mat Sub Scr Fac Turns Passed 2517 | 112 207 246 1052 900 Spaces Moved 1523 | 64 161 202 717 379 Core 4 | 4 . . . . Treads . | . . . . . Legs 740 | 60 8 . 293 379 Wheels 779 | . 153 202 424 . Hover . | . . . . . Flight . | . . . . . Fastest Speed 50 | 50 100 115 115 120 Average Speed 143 | 115 114 115 145 171 Slowest Speed 400 | 120 120 115 260 400 Overloaded Moves . | . . . . . Propulsion Burnouts . | . . . . . Robots Hopped . | . . . . . Potential Cave-ins . | . . . . . Cave-ins Triggered . | . . . . . Exploration Rate (%) 24 | 5 37 15 50 14 Regions Visited 4 Branch Regions 2 Pre-discovered Areas . | . . . . . Known Exits Taken . | . . . . . Unknown Exits Taken 4 | 1 1 1 1 . Scrap Searched 3 | . . . 3 . Spaces Dug . | . . . . . Terrain Destroyed 2 | . . . . 2 Melee . | . . . . . Projectile 2 | . . . . 2 AOE . | . . . . . Terrain Rammed . | . . . . . Walls Destroyed . | . . . . . Machines Disabled . | . . . . . Actions | -11 -10 -10 -8 -6 --------- Run | Yrd Mat Sub Scr Fac Total 1720 | 84 180 215 725 516 Wait 62 | 1 12 14 . 35 Move 1519 | 63 160 201 716 379 Hop . | . . . . . Pick Up 29 | 6 5 . 5 13 Fast Attach 12 | 7 . . . 5 Attach 12 | . . . . 12 Detach 1 | . . . . 1 Swap 10 | . 2 . 1 7 Drop 9 | . . . 2 7 Fire 65 | 7 1 . . 57 Melee . | . . . . . Ram . | . . . . . Kick . | . . . . . Crush . | . . . . . Escape Stasis . | . . . . . Rewire 1 | . . . 1 . Trap . | . . . . . Miscellaneous . | . . . . . Route ------- -11/Scrapyard -10/Materials (discovered 2 exits: [*Mat] / [*Sub]) -10/Subcaves (discovered 2 exits: [*Mat] / *Scr) -8/Scraptown -6/Factory History --------- Turn | Location | Event 3 | -11/Scrapyard | Discovered new exit (range 15) 113 | -11/Scrapyard | Entered Materials 114 | -10/Materials | Met a group of wandering Federalists 300 | -10/Materials | Discovered new exit (range 8) 302 | -10/Materials | Build established: Mutant 310 | -10/Materials | Discovered new exit (range 9) 320 | -10/Materials | Entered Subcaves 320 | -10/Subcaves | Accompanied by 1 ally 321 | -10/Subcaves | Continued accompanying wandering Federalists (3) 334 | -10/Subcaves | A swath of the cavern ceiling suddenly collapsed 473 | -10/Subcaves | Learned 8 Materials zone layouts 492 | -10/Subcaves | Discovered new exit (range 10) 561 | -10/Subcaves | Wandering Federalist uncovered a shortcut to Scraptown 566 | -10/Subcaves | Entered Scraptown 729 | -8/Scraptown | Visited UFD Registry 729 | -8/Scraptown | Registered with UFD as "Flexichip" 765 | -8/Scraptown | Visited Scrapoid Research Area 798 | -8/Scraptown | Visited Science Guys 1018 | -8/Scraptown | Visited Junk Repository 1035 | -8/Scraptown | Visited Scrapoid Pod Storage 1050 | -8/Scraptown | Visited A0-MCA Data Center 1057 | -8/Scraptown | Given a C+ rating by A0-MCA 1063 | -8/Scraptown | Found A0-MCA's Component Scanner 1102 | -8/Scraptown | Visited Botcube Research 1153 | -8/Scraptown | Visited Derelict Rescue Squad 1165 | -8/Scraptown | Found DRS Beacon 1208 | -8/Scraptown | Visited Curators Association 1253 | -8/Scraptown | Visited LU-1G1's Boring Crew 1479 | -8/Scraptown | Met Optimus 1479 | -8/Scraptown | Accepted into 0bPrime 1609 | -8/Scraptown | Discovered new exit (range 5) 1618 | -8/Scraptown | Entered Factory 1618 | -6/Factory | Evolved 8 slots: Power x1, Propulsion x2, Utility x5 1637 | -6/Factory | Identified exit to DSF 1779 | -6/Factory | Spotted B-75 Beast 2440 | -6/Factory | Lost 3 parts (1p2n) 2494 | -6/Factory | System corruption reached 10% 2518 | -6/Factory | Self-destructed Last Messages --------------- 02472_ System corrupted: Component data lost. 02493_ Triggered EM Surge Trap. 02493_ The floor emits a surge of raw power. 02493_ System corrupted (+3). 02495_ Triggered Alarm Trap. 02495_ An alarm sounds. 02495_ ALERT: Alarm triggered, dispatching investigation squad. 02499_ System corrupted: Component data lost. 02502_ Component scanned: Lgt. Antimatter Reactor [G-67 Veteran]. 02505_ U-05 Engineer lays Concrete. 02510_ Aluminum Leg destroyed. 02511_ Triggered EM Surge Trap. 02511_ The floor emits a surge of raw power. 02511_ System corrupted (+3). 02512_ Lgt. Deuterium Engine destroyed. 02512_ Imp. Deuterium Engine destroyed. 02513_ Utility Shielding destroyed. 02515_ System corrupted: Heat flow error (+253). Map ----- +----------------------------------------------------+ | ?????????????????????????????????????????????????? | | ?????????????????????????????????????????????????? | | ?????????????????????????????????????????????????? | | ?????????????????????????????????????????????????? | | ?????????????????????????????????????????????????? | | ?????????????????????????????????????????????????? | | ?????????????????????????????????????????????????? | | ?????????????????????????????????????????????????? | | ?????????????????????????????????????????????????? | | ?????????????????????????????????????????????????? | | ?????????????????????????? ?????????????????? | | ????????????????????????? ? ???????????????? | | ??????????????????????? ???????? ???????? | | ????????????????????? ???????? ???????? | | ???????????????????? #???????? ???????? | | ???????????????????? #???????? #??????? | | ???????????????????? #????#??? ??????? | | ???????????????????? #??? #??? #??????? | | ????????????????????? ####/####+####???? | | ??????????????????????? # #???? | | ????????????????????????? # #???? | | ?????????????###########+## # #???? | | ?????????????# # # #???? | | ?????????????# # # #???? | | ?????????????# * +^ / #???? | | ?????????????# """ """@# # #???? | | ???????????????????"" """ # # #???? | | ???????????????????"" """ # # #???? | | ??????????????????? # # ####? | | ??????????????????""" """ # # ##### | | ???????????????????"" """ # # = !!* | | ???????????????????"" """ # #################[ | | ??????????????????????? # #???????????????#! | | ??????????????????????? # #???????????????# | | ????????????????????????### #???????????????# | | ??????????????????????????###"#/#???????????????# | | ???????????????????????????? ???????????????# | | ????????????????????????????"""" ???????????????# | | ????????????????????????????"""" ??????????????# | | ????????????????????????????""?" ??????????????## | | ???????????????????????????????? ???????????????? | | ???????????????????????????????? ???????????????? | | ????????????????????????????????? ???????????????? | | ?????????????????????????????????????????????????? | | ?????????????????????????????????????????????????? | | ?????????????????????????????????????????????????? | | ?????????????????????????????????????????????????? | | ?????????????????????????????????????????????????? | | ?????????????????????????????????????????????????? | | ?????????????????????????????????????????????????? | +----------------------------------------------------+ Best States ------------- Heat Dissipation 64 Energy Generation 25 Energy Capacity 330 Matter Stores 300 Matter Capacity 300 Sight Range 16 Terrain Scan Density 10 Armor Coverage 150 Resistance: KI 20 Power Shielding 33 Utility Shielding 33 Evasion (%) 55 Targeting Accuracy 12 Item Schematics ----------------- None Robot Schematics ------------------ None Fabricated ------------ Nothing Repaired ---------- Nothing Alien Tech Used ----------------- None Achievements -------------- More Dakka Please Challenges ------------ None Game ------ Seed TechAssaultSource Manual? 0 Play Time 00:26:31 Cumulative 15.3 hours Start 2025.06.08 @ 11:56:43 End 2025.06.08 @ 12:22:02 Sessions 1 Manual Loads 0 Difficulty Rogue Special Mode None Game No. 19 Rogue 19 Adventurer 0 Explorer 0 Win Type - Total 0 Types 0/0/0/0/0/0/0/0/0/0 Lore% 17 Gallery% 19 Achievement% 19 Wizard Run 0 Options --------- Layout 1 ASCII 0 Keyboard 0 Movement Mouse Keybinds 0 Fullscreen 1 Font 24/Smallcaps Map View 50x40 Zoom Use 0% Tactical HUD 1 Map Filters NONE Filters NONE Steam 1 RUN: 38b60f1a-3eb2-4a8e-883e-787bf278dfd3